Cogmind - Beta 9.3 @@@ ROGUE MODE // 2019.12.30 @ 22:37:36 // Winter2019/RPGLIKE Player: Judas Result: Destroyed by S-10 Pest with Light Assault Rifle Performance ------------- Evolutions (1) 500 Regions Visited (3) 600 Robots Destroyed (36) 180 Value Destroyed (834) 834 Prototype IDs (0) 0 Alien Tech Used (0) 0 Bonus (0) 0 TOTAL SCORE: 2114 Bonus ------- None Cogmind --------- Core Integrity 0/600 Matter 28/300 Energy 275/275 System Corruption 0% Temperature Cool (12) Movement Flying (37) Location -9/Materials Parts ------- > --- POWER (1) -------- Deuterium Engine > --- PROPULSION (2) --- Flight Unit Flight Unit > --- UTILITY (2) ------ Advanced Targeting Computer Hacking Suite > --- WEAPON (2) ------- Heavy Assault Rifle Light Cannon > --- INVENTORY (2) ---- Great Maul Peak State ------------ > --- POWER ------------ Deuterium Engine > --- PROPULSION ------- Hover Unit Airjet > --- UTILITY ---------- Advanced Targeting Computer Hacking Suite > --- WEAPON ----------- Heavy Assault Rifle Light Cannon > --- INVENTORY -------- Great Maul [Rating: 16] Favorites ----------- Power Ion Engine Engine Ion Engine Propulsion Wheel Wheel Wheel Hover Unit Hover Unit Flight Unit Flight Unit Utility Targeting Computer Device Improved Heat Sink Processor Targeting Computer Hackware Hacking Suite Weapon Light Cannon Energy Gun Particle Gun Ballistic Gun Light Assault Rifle Ballistic Cannon Light Cannon Build | -11 -10 -10 -9 ------- Run | Scr Mat Min Mat Slots Evolved 3 | 2 . . 1 Power . | . . . . Propulsion 1 | 1 . . . Utility 1 | . . . 1 Weapon 1 | 1 . . . Parts Attached 20 | 5 6 3 6 Power 2 | 1 . 1 . Engine 2 | 1 . 1 . Core . | . . . . Reactor . | . . . . Propulsion 8 | 2 1 1 4 Treads . | . . . . Leg . | . . . . Wheel 2 | 2 . . . Hover 4 | . 1 1 2 Flight 2 | . . . 2 Utility 4 | . 2 1 1 Device 1 | . 1 . . Storage . | . . . . Processor 2 | . 1 1 . Hackware 1 | . . . 1 Protection . | . . . . Artifact . | . . . . Weapon 6 | 2 3 . 1 Energy Gun 2 | 1 1 . . Energy Cannon . | . . . . Ballistic Gun 2 | 1 . . 1 Ballistic Cannon 2 | . 2 . . Launcher . | . . . . Special Weapon . | . . . . Impact Weapon . | . . . . Slashing Weapon . | . . . . Piercing Weapon . | . . . . Special Melee Weapon . | . . . . Unidentified Prototypes . | . . . . Parts Lost 2 | . . . 2 Power . | . . . . Propulsion 2 | . . . 2 Utility . | . . . . Weapon . | . . . . Highest Loss Streak 2 | . . . 2 Average Slot Usage (%) 98 | . 97 100 98 Engine 15 | . 16 16 14 Wheel 19 | . 28 10 . Hover 11 | . 4 21 24 Device 4 | . 6 . . Processor 10 | . 7 16 14 Hackware 2 | . . . 12 Energy Gun 5 | . 8 . . Ballistic Gun 8 | . 8 . 14 Ballistic Cannon 17 | . 15 33 14 Naked Turns . | . . . . Heaviest Build 15 | 7 11 15 15 Greatest Support 35 | 26 26 35 35 Greatest Overweight (x) 1 | . 1 1 . Average Overweight (x) . | . . . . Largest Inventory Capacity 2 | 2 2 2 2 Average Capacity 1 | 1 2 2 2 Most Carried 2 | 2 2 2 2 Average Carried 1 | 1 1 2 1 Final Capacity 2 | 2 2 2 2 Final Carried 2 | 2 2 2 1 Class Distribution -------------------- 100% | Mutant Dominant Class ---------------- Mutant | -10/Materials Mutant | -10/Mines Mutant | -9/Materials Resources | -11 -10 -10 -9 ----------- Run | Scr Mat Min Mat Matter Collected 680 | 259 238 45 138 Remotely . | . . . . Salvage Created 959 | 103 487 45 324 Parts 55 | 5 27 6 17 Haulers Intercepted 2 | . 1 . 1 Recyclers Shooed . | . . . . Parts Field Recycled . | . . . . Retrieved Matter . | . . . . Parts Self-Destructed . | . . . . Prevented . | . . . . Kills | -11 -10 -10 -9 ------- Run | Scr Mat Min Mat Combat Hostiles Destroyed 25 | . 9 5 11 Guns 9 | . 3 . 6 Cannons 14 | . 6 5 3 AOE 2 | . . . 2 Classes Destroyed 9 | 2 6 . 1 Builder 1 | . 1 . . Tunneler 1 | 1 . . . Hauler 2 | . 1 . 1 Recycler 3 | 1 2 . . Operator 2 | . 2 . . Watcher 2 | . 2 . . Swarmer 10 | . 2 3 5 Grunt 11 | . 7 2 2 Sentry 4 | . . . 4 Best Kill Streak 7 | 1 4 3 7 Combat Bots Only 7 | . 3 3 7 Max Kills in Single Turn 2 | 1 1 2 2 Gunslinging . | . . . . Exploded 2 | . . . 2 Melee . | . . . . Uniques/NPCs Destroyed . | . . . . Combat | -11 -10 -10 -9 -------- Run | Scr Mat Min Mat Damage Taken 1690 | . 524 278 888 Core 1367 | . 421 219 727 Absorbed by Shields . | . . . . Redirected to Core 1034 | . 329 164 541 Core Remaining (%) 94 | 100 . 88 . Volleys Fired 110 | 9 58 12 31 Largest 2 | 2 2 2 2 Hottest 85 | 60 85 70 58 Shots Fired 220 | 18 116 24 62 Gun 113 | 18 64 . 31 Cannon 107 | . 52 24 31 Launcher . | . . . . Special . | . . . . Kinetic 179 | 9 84 24 62 Thermal 41 | 9 32 . . Explosive . | . . . . Electromagnetic . | . . . . Robot Hit Streak 13 | 3 10 3 13 Robot Miss Streak 4 | 2 3 4 3 Penetration Max . | . . . . Secondary Targets . | . . . . Shots Hit Robots 137 | 12 77 9 39 Core Hits 53 | 3 27 6 17 Critical Hits . | . . . . Critical Kills . | . . . . Critical Parts Destroyed . | . . . . Melee Attacks . | . . . . Impact . | . . . . Slashing . | . . . . Piercing . | . . . . Sneak Attacks . | . . . . Combat Hostiles . | . . . . Follow-up Attacks . | . . . . Damage Inflicted 2476 | 127 1147 224 978 Guns 1073 | 127 571 . 375 Cannons 1159 | . 576 224 359 Explosions 244 | . . . 244 Melee . | . . . . Ramming . | . . . . Kinetic 1787 | 73 756 224 734 Thermal 445 | 54 391 . . Explosive 244 | . . . 244 Electromagnetic . | . . . . Impact . | . . . . Slashing . | . . . . Piercing . | . . . . Highest Corruption . | . . . . Average Corruption . | . . . . Corruption Purged . | . . . . Overload Shots . | . . . . Overflow Damage 41 | . 20 12 9 Projectiles 32 | . 20 12 . Explosions 9 | . . . 9 Melee . | . . . . Knockbacks 11 | . 8 . 3 Impact . | . . . . Kinetic 11 | . 8 . 3 Secondary . | . . . . Self-Inflicted Damage 212 | . . . 212 Shots 2 | . . . 2 Rammed . | . . . . Targets Rammed . | . . . . Kicked . | . . . . Crushed . | . . . . Highest Temperature 171 | 40 85 171 113 Average Temperature 37 | 21 24 82 40 Received Heat Transfer 468 | . 216 105 147 Siege Activations . | . . . . Robots Corrupted . | . . . . Combat Hostiles . | . . . . Parts Fried . | . . . . Impact Corruptions . | . . . . Robots Melted . | . . . . Combat Hostiles . | . . . . Parts Melted . | . . . . Heat Transferred 1053 | 125 928 . . Parts Sabotaged . | . . . . Parts Stolen . | . . . . Parts Stripped . | . . . . Power Chain Reactions . | . . . . Missiles Intercepted . | . . . . Alert | -11 -10 -10 -9 ------- Run | Scr Mat Min Mat Peak Influence 372 | 10 204 159 372 Average Influence 83 | 3 82 62 143 Maximum Alert Level 1 | . 1 . 1 Low Security (%) 89 | 100 93 100 68 Level 1 10 | . 6 . 31 Level 2 . | . . . . Level 3 . | . . . . Level 4 . | . . . . Level 5 . | . . . . High Security . | . . . . Max Security . | . . . . Squads Dispatched 4 | . 2 . 2 Investigation . | . . . . Extermination . | . . . . Reinforcement 4 | . 2 . 2 Assault . | . . . . Garrison . | . . . . Intercept . | . . . . Construction Impeded 1 | . . . 1 Haulers Reinforced . | . . . . Stealth | -11 -10 -10 -9 --------- Run | Scr Mat Min Mat Distress Signals 2 | . 2 . . Communications Jammed . | . . . . Distress Signals . | . . . . Times Spotted 48 | . 23 5 20 Peak Tracking Total 6 | . 5 3 6 Tactical Retreats 8 | . 6 . 2 Traps | -11 -10 -10 -9 ------- Run | Scr Mat Min Mat Traps Triggered 1 | . . 1 . Indirectly . | . . . . Trap Hack Attempts . | . . . . Triggered . | . . . . Disarmed . | . . . . Reprogrammed . | . . . . Reused . | . . . . Traps Extracted . | . . . . Installed . | . . . . Triggered . | . . . . Machines | -11 -10 -10 -9 ---------- Run | Scr Mat Min Mat Machines Disabled 3 | . . 1 2 Max in Single Turn 2 | . . 1 2 Machines Sabotaged . | . . . . Garrisons Compromised . | . . . . Overloaded Fab Kills . | . . . . Fab Network Shutdowns . | . . . . Hacking | -11 -10 -10 -9 --------- Run | Scr Mat Min Mat Machines Accessed 7 | . 3 2 2 Terminals 5 | . 2 1 2 Fabricators . | . . . . Repair Stations . | . . . . Recycling Units 1 | . 1 . . Scanalyzers . | . . . . Garrison Access . | . . . . Total Hacks 14 | . 5 4 5 Successful 12 | . 4 4 4 Failed 2 | . 1 . 1 Catastrophic . | . . . . Database Lockouts . | . . . . Manual 7 | . 3 2 2 Terminals 11 | . 3 3 5 Fabricators . | . . . . Repair Stations . | . . . . Recycling Units 2 | . 2 . . Scanalyzers . | . . . . Garrison Access . | . . . . Terminal Hacks 6 | . 1 3 2 Open Door 1 | . . 1 . Unreport Threat 3 | . 1 1 1 Zone Layout 2 | . . 1 1 Fabricator Hacks . | . . . . Repair Station Hacks . | . . . . Recycling Unit Hacks 1 | . 1 . . Process 1 | . 1 . . Scanalyzer . | . . . . Garrison Access Hacks . | . . . . Unauthorized Hacks 10 | . 4 2 4 Terminals 5 | . 2 1 2 Botnet 5 | . 2 1 2 Fabricators . | . . . . Repair Stations . | . . . . Recycling Units . | . . . . Scanalyzers . | . . . . Garrison Access . | . . . . Data Cores Recovered . | . . . . Used . | . . . . Hacking Detections 2 | . 1 . 1 Full Trace Events . | . . . . Feedback Events . | . . . . Feedback Blocked . | . . . . Robot Schematics Acquired . | . . . . Robots Built . | . . . . Matter . | . . . . Time . | . . . . Total Robot Build Rating . | . . . . Part Schematics Acquired . | . . . . Parts Built . | . . . . Matter . | . . . . Time . | . . . . Total Part Build Rating . | . . . . Parts Repaired . | . . . . Time . | . . . . Parts Recycled . | . . . . Recycled Matter . | . . . . Retrieved Matter . | . . . . Retrieved Components . | . . . . Parts Scanalyzed . | . . . . Part Schematics Acquired . | . . . . Parts Damaged . | . . . . Bothacking | -11 -10 -10 -9 ------------ Run | Scr Mat Min Mat Used RIF Installer . | . . . . Robots Hacked . | . . . . Non-combat . | . . . . Combat . | . . . . Robot Hacks Applied . | . . . . Relay Couplers Released . | . . . . Robots Rewired . | . . . . Allies Hacked . | . . . . Hacks Repelled . | . . . . Allies | -11 -10 -10 -9 -------- Run | Scr Mat Min Mat Total Allies . | . . . . Largest Group . | . . . . Highest-Rated Group . | . . . . Highest-Rated Ally . | . . . . Total Orders . | . . . . Ally Attacks . | . . . . Total Damage . | . . . . Kills . | . . . . Allies Corrupted . | . . . . Allies Melted . | . . . . Intel | -11 -10 -10 -9 ------- Run | Scr Mat Min Mat Robot Analysis Total . | . . . . Derelict Logs Recovered . | . . . . Drone Launches . | . . . . Drone Recoveries . | . . . . Exploration | -11 -10 -10 -9 ------------- Run | Scr Mat Min Mat Turns Passed 1142 | 114 662 143 223 Spaces Moved 860 | 88 459 126 187 Core 2 | 1 . . 1 Treads . | . . . . Legs . | . . . . Wheels 445 | 87 358 . . Hover 391 | . 101 126 164 Flight 22 | . . . 22 Fastest Speed 37 | 50 90 56 37 Average Speed 82 | 90 97 67 53 Slowest Speed 125 | 100 125 125 60 Overloaded Moves . | . . . . Propulsion Burnouts . | . . . . Robots Hopped . | . . . . Cave-ins Triggered . | . . . . Exploration Rate (%) 29 | 5 59 30 24 Regions Visited 3 Branch Regions 1 Pre-discovered Areas . | . . . . Known Exits Taken . | . . . . Unknown Exits Taken 3 | 1 1 1 . Scrap Searched 1 | . . 1 . Spaces Dug . | . . . . Terrain Destroyed 42 | . . . 42 Melee . | . . . . Projectile . | . . . . AOE 42 | . . . 42 Actions | -11 -10 -10 -9 --------- Run | Scr Mat Min Mat Total 1073 | 103 563 160 247 Wait 32 | . 23 . 9 Move 857 | 87 458 125 187 Hop . | . . . . Pick Up 5 | 2 1 1 1 Fast Attach 17 | 5 6 3 3 Attach 2 | . . . 2 Detach . | . . . . Swap 1 | . . . 1 Drop 13 | . 6 4 3 Fire 110 | 9 58 12 31 Melee . | . . . . Ram . | . . . . Kick . | . . . . Crush . | . . . . Escape Stasis . | . . . . Rewire . | . . . . Trap . | . . . . Miscellaneous 36 | . 11 15 10 Route ------- -11/Scrapyard -10/Materials (discovered 3 exits: *Mat x2 / *Min) -10/Mines -9/Materials (discovered 2 exits: [*Mat x2]) History --------- Turn | Location | Event 1 | -11/Scrapyard | Upgraded with Propulsion slot (x1) 1 | -11/Scrapyard | Upgraded with Weapon slot (x1) 13 | -11/Scrapyard | Discovered new exit (range 15) 115 | -11/Scrapyard | Entered Materials 264 | -10/Materials | Discovered new exit (range 10) 316 | -10/Materials | Build established: Mutant 506 | -10/Materials | Discovered new exit (range 16) 605 | -10/Materials | Discovered new exit (range 10) 777 | -10/Materials | Entered Mines 779 | -10/Mines | Reached level 2 790 | -10/Mines | Core integrity fell below 50% 860 | -10/Mines | Met a Derelict who couldn't figure out how to use a Trap Extractor 871 | -10/Mines | Met a Derelict bent on vengeance 903 | -10/Mines | Discovered new exit (range 5) 920 | -10/Mines | Entered Materials 922 | -9/Materials | Reached level 3 944 | -9/Materials | Upgraded with Utility slot (x1) 960 | -9/Materials | Discovered new exit (range 12) 1073 | -9/Materials | Reached level 4 1109 | -9/Materials | Core integrity fell below 50% 1123 | -9/Materials | Core integrity fell below 20% 1133 | -9/Materials | Discovered new exit (range 10) 1138 | -9/Materials | Destroyed 7 combat bots 1143 | -9/Materials | Destroyed by S-10 Pest with Light Assault Rifle Last Messages --------------- 01097_ Acquired 61 matter. 01100_ Used Protomatter to restore core integrity (+15, depleted) 01108_ Hover Unit destroyed. 01110_ Y-45 Defender destroyed. 01117_ Nuclear Reactor explodes. 01117_ Destroyed Lgt. Ion Engine. 01117_ S-10 Pest destroyed. 01117_ Airjet destroyed. 01117_ Destroyed Airjet. 01117_ Nuclear Reactor explodes. 01117_ S-10 Pest destroyed. 01119_ The unstable cave ceiling collapses. 01126_ Acquired Flight Unit. 01129_ Dropped Hover Unit. 01129_ Acquired Flight Unit. 01133_ EXIT=FOUND 01138_ Destroyed Flight Unit. 01138_ ALERT: Construction progress impeded, dispatching reinforcements to local area. 01141_ S-10 Pest destroyed. Map ----- +----------------------------------------------------+ | #??????????????# #???## ##???????????? | | #??????????????+ #??? #???????????? | | #??????????????# #?? T #???????????? | | #?????????????## ##? #???????????? | | |############### # ! #???????????? | | %| = # #???????????? | | || !% + %#???????????? | | * ###### ! # #???????????? | | #?## # ## """ / #????????? | | #?# = % #??""" # +????????? | | ##### #??""" #???????????? | | # #???"" #???????????? | | # #???""??????????????? | | # # #???????????????????? | | ## ###?????##??????????? | | ## # ### # ????? #??????????? | | ## ##* # ????? #??????????? | | ## !!! + % # ??? #??????????? | | ## !! # =# """ #??????????? | | ###### !! # # """"" #??????????? | | ?????# / # """"" #??????????? | | ?????# ### # """"" #??????????? | | ?????# #?#*# "" #??????????? | | ?????# #?# # #??????????? | | ?????#####+#######[###;#/#;####????????? | | ???? [ s@ #????????? | | ???? %s ss < #????????? | | ???? u = * #????????? | | ?????#######+###########= #????????? | | ???????????????????????#% %#????????? | | ???????????????????????#% %#????????? | | ???????????????????????##%%%%##????????? | | ????????????????????????######?????????? | | ???????????????????????????????????????? | | ???????????????????????????????????????? | | ???????????????????????????????????????? | | ???????????????????????????????????????? | | ???????????????????????????????????????? | | ???????????????????????????????????????? | | ???????????????????????????????????????? | | ???????????????????????????????????????? | | ???????????????????????????????????????? | | ???????????????????????????????????????? | | ???????????????????????????????????????? | | ???????????????????????????????????????? | | ???????????????????????????????????????? | | ???????????????????????????????????????? | | ???????????????????????????????????????? | | ???????????????????????????????????????? | | ???????????????????????????????????????? | +----------------------------------------------------+ Best States ------------- Heat Dissipation 39 Energy Generation 14 Energy Capacity 275 Matter Stores 300 Matter Capacity 300 Sight Range 16 Terrain Scan Density 10 Evasion (%) 53 Targeting Accuracy 8 Offensive Hacking 10 Item Schematics ----------------- None Robot Schematics ------------------ None Fabricated ------------ Nothing Alien Tech Used ----------------- None Achievements -------------- None Challenges ------------ None RPGLIKE | -11 -10 -10 -9 --------- Run | Scr Mat Min Mat Levels Raised 3 | . . 1 2 XP Earned 8465 | 3000 1205 1175 3085 XP Spent 3250 | 1750 . 1000 500 Upgrades 9 | 4 . 4 1 Propulsion Slot 1 | 1 . . . Utility Slot 1 | . . . 1 Weapon Slot 1 | 1 . . . Mass Support 4 | . . 4 . Inventory Capacity 2 | 2 . . . Protomatter Created 216 | . 79 50 87 Integrity Restored 787 | . 237 333 217 Core 765 | . 237 333 195 Parts 22 | . . . 22 Protomatter Decayed 158 | . . . 158 Game ------ Seed GhostGammaShielding Manual? 0 Play Time 00:19:09 Cumulative 30.9 hours Start 2019.12.30 @ 22:17:55 End 2019.12.30 @ 22:37:36 Sessions 1 Manual Loads 0 Difficulty Rogue Special Mode Winter2019/RPGLIKE Game No. 57 Rogue 57 Adventurer 0 Explorer 0 Win Type - Total 0 Types 0/0/0/0/0/0/0 Lore% 24 Gallery% 29 Achievement% 24 Wizard Run 0 Options --------- ASCII 0 Keyboard 0 Movement Mouse Keybinds 0 Fullscreen 1 Font 18/SmallcapsGlow Map View 76x50 Tactical HUD 1 Map Filters NONE Filters NONE Steam 1 RUN: bb19c9ca-d6b4-4a63-9db5-b1e4dd88672a